{"text_format":"1","workbook":"xlsx","n_sheets":1,"sheets":["Anfrageformular Einsatzgefäße"],"not_rendered":{"charts":0,"images":2,"macros":1,"external_links":0,"defined_names":1,"comments":0,"pivot_tables":0},"unopened":[],"bounds":{"document_bytes":16777216,"sheet_cells":100000,"rows_first":2000,"rows_last":500,"rows_between":2000,"halvings":0,"cell_chars":16384,"cell_head_chars":4096},"cells_cut":0,"cells_raw":0,"read":"whole","date_system":"1900"}

{"sheet":"Anfrageformular Einsatzgefäße","index":0,"n_rows":65,"n_cols":8,"rows_kept":65,"cut":false,"hidden":false,"merged":[[64,1,65,6],[8,2,8,4],[18,2,18,4],[16,2,16,4],[12,2,12,4],[10,2,10,4],[60,1,60,6]]}
[]
[null,"Anfrageformular für: "]
[]
[null,"HYDRO PROFI LINE®"]
[null,"EINSATZGEFÄßE AUS EDELSTAHL NACH MAß"]
[]
[null,"KONTAKTDATEN"]
[]
[null,"Firmenname:"]
[]
[null,"Ansprechpartner:"]
[null,"(Vor- und Nachname)"]
[null,"Anschrift"]
[null,"(Straße + Hausnummer:)"]
[null,"Postleitzahl:",null,"Ort:"]
[]
[null,"Telefon:"]
[]
[null,"E-Mail:"]
[]
[]
[null,"HINWEISE ZU PRODUKTVARIANTEN UND SPEZIFIKATIONEN "]
[null,"Einsatzgefäß","Volumen \nKulturtopf in Liter","Maße Kulturtopf \n(Ø und Höhe) in cm","ca. Pflanzen-\ngröße in cm","Länge \nGefäß in mm","Mindestbreite \nGefäß in mm","Höhe \nGefäß in mm"]
[]
[null,"Typ 1",2,"16,5 / 14,5","20 bis 50","400 bis 1.850","220 bis 650",230]
[null,"Typ 2",3,"19,0 / 17,5","20 bis 70","400 bis 1.850","230 bis 650",260]
[null,"Typ 3",5,"23,0 / 20,0","20 bis 100","400 bis 1.850","250 bis 650",280]
[null,"Typ 4",7.5,"26,0 / 22,0","20 bis 150","400 bis 1.850","270 bis 650",305]
[null,"Typ 5",9.5,"28,5 / 24,0","20 bis 180","400 bis 1.850","300 bis 650",310]
[null,"Typ 6",12,"30,5 / 26,5","20 bis 250","400 bis 1.850","320 bis 650",380]
[]
[]
[null,"ANFRAGE (Maße in mm)"]
[null,"Bitte Typ als Zahl 1-6, Stückzahl sowie Länge und Breite unter Berücksichtigung von Mindest- und Maximalmaßen eintragen. Die Gefäßhöhe ist vorgegeben. "]
[]
[null,"Typ \n(1-6)","Stückzahl","Länge in cm\nmin. 400 - max. 1850","Breite in cm\nmax. 650","Typenabhängige Mindestbreite in mm (automatisch)","Höhe in mm \n(automatisch)"]
[]
[null,null,null,null,null,{"$f":"IF(B38=1,220,IF(B38=2,230,IF(B38=3,250,IF(B38=4,270,IF(B38=5,300,IF(B38=6,320,\"\"))))))","v":""},{"$f":"IF(B38=1,$H$25,IF(B38=2,$H$26,IF(B38=3,$H$27,IF(B38=4,$H$28,IF(B38=5,$H$29,IF(B38=6,$H$30,\"\"))))))","v":""}]
[null,null,null,null,null,{"$f":"IF(B39=1,220,IF(B39=2,230,IF(B39=3,250,IF(B39=4,270,IF(B39=5,300,IF(B39=6,320,\"\"))))))","v":""},{"$f":"IF(B39=1,$H$25,IF(B39=2,$H$26,IF(B39=3,$H$27,IF(B39=4,$H$28,IF(B39=5,$H$29,IF(B39=6,$H$30,\"\"))))))","v":""}]
[null,null,null,null,null,"",""]
[null,null,null,null,null,"",""]
[null,null,null,null,null,"",""]
[null,null,null,null,null,"",""]
[null,null,null,null,null,"",""]
[null,null,null,null,null,"",""]
[null,null,null,null,null,"",""]
[null,null,null,null,null,"",""]
[null,null,null,null,null,"",""]
[null,null,null,null,null,"",""]
[null,null,null,null,null,"",""]
[null,null,null,null,null,"",""]
[null,null,null,null,null,"",""]
[null,null,null,null,null,"",""]
[null,null,null,null,null,"",""]
[null,null,null,null,null,"",""]
[null,null,null,null,null,"",""]
[null,null,null,null,null,"",""]
[null,null,null,null,null,"",""]
[null,null,null,null,null,"",""]
[null,null,null,null,null,"",""]
[null,"ACHTUNG: \nVor dem Versenden muss die Datei lokal gespeichert werden, da ansonsten der Inhalt verloren geht. \nNach Klick auf die Schaltfläche werden Sie hierzu aufgefordert. "]
[]
[]
[]
[null,"Per Klick auf die Schaltfläche wird automatisch eine e-Mail über Outlook generiert und an info@gkr-germany.com versendet. \nBitte nur 1x anklicken. "]